[Event "Turkey IS Bank Super League 2017"]
[Site "Darica-Kocaeli"]
[Date "2017.08.05"]
[Round "12"]
[White "Demircioglu, Emre"]
[Black "Selbes, Tarik"]
[Result "0-1"]
[ECO "E73"]
[WhiteElo "2265"]
[BlackElo "2297"]
[Annotator "NA"]
[PlyCount "70"]
[EventType "team-tourn"]
[EventCountry "TUR"]
[SourceTitle "playchess.com"]
[Source "ChessBase"]
[SourceQuality "1"]
[TimeControl "40/5400+30:1800+30"]

{[%evp 17,70,27,16,18,22,15,0,12,27,19,14,23,35,25,39,33,54,43,43,20,17,-35,79,62,32767,32767,32767,32767,32767,32767,32767,32767,32767,32767,32767,32767,32767,32767,32767,32767,32767,83,100,0,0,32767,-222,-209,-218,-211,-210,-515,-603,32767,-610]} 1. d4 {[%emt 0:01:30]} Nf6 {[%emt 0:01:00]} 2. c4 {[%emt 0:00:00]} g6 {[%emt 0:00:30]} 3. Nc3 {[%emt 0:01:00]} Bg7 {[%emt 0:00:00]} 4. e4 {[%emt 0:01:30]} O-O {[%emt 0:00:00]} 5. Be2 {[%emt 0:00:30]} d6 {[%emt 0:00:30]} 6. Bg5 {[%emt 0:00:30]} h6 {[%emt 0:00:30]} 7. Be3 {[%emt 0:00:30]} e5 {[%emt 0:00:30]} 8. d5 {[%emt 0:11:30]} Na6 {[%emt 0:00:30]} 9. Nf3 {[%emt 0:08:30] E73: King's Indian: Averbakh Variation without 6...c5} (9. Qd2 Nc5 10. f3 Kh7 11. O-O-O a5 12. g4 h5 13. h3 a4 14. Bf1 Ng8 15. gxh5 gxh5 16. h4 Bh6 17. Nh3 Bxe3 18. Qxe3 {½-½ (49) Cruz,C (2565)-Cori Tello,J (2612) Lima 2017}) 9... Ng4 {[%emt 0:03:30]} 10. Bc1 {[%emt 0:00:30]} f5 {[%emt 0:00:30]} 11. exf5 {[%emt 0:00:30]} gxf5 {[%emt 0:01:30]} 12. g3 {[%emt 0:00:30]} e4 {[%emt 0:01:30]} 13. Nh4 {[%emt 0:02:30]} Nc5 $146 {[%emt 0:02:30]} ({Predecessor:} 13... Bxc3+ 14. bxc3 Qf6 15. O-O Qxc3 16. Rb1 Qg7 17. Bb2 Ne5 18. Kh1 Nc5 {½-½ (18) Brinkmann,W (2125)-Eberl,H ICCF email 2002}) 14. Ng6 {[%emt 0:03:30]} Re8 {[%emt 0:03:30]} 15. h3 {[%emt 0:06:30]} Qf6 {[%emt 0:12:30]} 16. Nf4 {[%emt 0:03:30]} Ne5 {[%emt 0:01:30]} 17. Kf1 {[%emt 0:07:30]} Bd7 {[%emt 0:01:30]} 18. Be3 {[%emt 0:01:30]} Ncd3 {[%emt 0:05:30]} 19. Nxd3 {[%emt 0:03:30]} ({Better is} 19. Bxd3 $11 exd3 20. Nh5) 19... exd3 {[%emt 0:00:00]} (19... Nxc4 $11 {remains equal.} 20. Bc1 exd3 21. Qxd3 b5) 20. Bxd3 {[%emt 0:00:30]} Nxd3 {[%emt 0:04:00]} 21. Qxd3 {[%emt 0:00:30]} f4 {[%emt 0:01:30] [%clk 0:59]} 22. Bxf4 {[%emt 0:03:30]} Bf5 {[%emt 0:00:00]} 23. Qd2 {[%emt 0:00:30]} Qg6 {[%emt 0:00:00]} 24. Kg2 {[%emt 0:00:30]} Bd3 {[%emt 0:00:30]} 25. Rhd1 {[%emt 0:21:35]} Bxc4 {[%emt 0:00:30]} 26. Rac1 {[%emt 0:01:46]} Re7 {[%emt 0:02:30]} 27. b3 {[%emt 0:00:50]} Ba6 {[%emt 0:00:30]} 28. Be3 {[%emt 0:01:26]} Rf8 {[%emt 0:01:30]} 29. Bd4 {[%emt 0:00:43]} ({Not} 29. Bxa7 b6 $17) 29... Qf5 {[%emt 0:11:30]} 30. f4 {[%emt 0:00:58]} (30. Re1 $14 Qf3+ 31. Kg1 Bxd4 32. Qxd4) 30... Rfe8 $1 {[%emt 0:01:30]} 31. Bxg7 {[%emt 0:08:52]} Re2+ $1 {[%emt 0:01:30]} 32. Nxe2 {[%emt 0:00:06]} Rxe2+ {[%emt 0:00:30]} 33. Qxe2 {[%emt 0:00:30]} Bxe2 {[%emt 0:00:00]} 34. Re1 $2 {[%emt 0:00:00]} (34. Rd4 Kxg7 35. g4) 34... Qe4+ {[%emt 0:00:00]} 35. Kh2 {[%emt 0:00:50]} Kxg7 $19 {[%emt 0:00:30]} 0-1

[Event "Turkey IS Bank Super League 2017"]
[Site "Darica-Kocaeli"]
[Date "2017.08.05"]
[Round "12"]
[White "Samani, Yamac"]
[Black "Tirak, Mert"]
[Result "1-0"]
[ECO "B08"]
[WhiteElo "2263"]
[BlackElo "1909"]
[Annotator "ChessBase"]
[PlyCount "81"]
[EventType "team-tourn"]
[EventCountry "TUR"]
[SourceTitle "playchess.com"]
[Source "ChessBase"]
[SourceQuality "1"]
[TimeControl "40/5400+30:1800+30"]

1. e4 {[%emt 0:00:30]} d6 {[%emt 0:02:00]} 2. d4 {[%emt 0:00:30]} Nf6 {[%emt 0:00:00]} 3. Nc3 {[%emt 0:00:00]} g6 {[%emt 0:00:00]} 4. Nf3 {[%emt 0:02:00]} Bg7 {[%emt 0:01:30]} 5. h3 {[%emt 0:00:30]} O-O {[%emt 0:00:00]} 6. Be3 {[%emt 0:00:30]} b6 {[%emt 0:11:00]} 7. Bd3 {[%emt 0:01:30]} Bb7 {[%emt 0:00:30]} 8. O-O {[%emt 0:00:30]} Nbd7 {[%emt 0:03:30]} 9. Qd2 {[%emt 0:02:30]} Re8 {[%emt 0:03:30]} 10. a4 {[%emt 0:08:30]} a6 {[%emt 0:01:30]} 11. Rfe1 {[%emt 0:05:30]} c5 {[%emt 0:06:30]} 12. d5 {[%emt 0:01:30]} Qc7 {[%emt 0:12:30]} 13. Bc4 {[%emt 0:01:30]} Ne5 {[%emt 0:12:30]} 14. Nxe5 {[%emt 0:00:30]} dxe5 {[%emt 0:00:30] [%clk 0:39]} 15. Rf1 {[%emt 0:18:30]} Nh5 {[%emt 0:05:30]} 16. Rad1 {[%emt 0:14:30]} Rad8 {[%emt 0:03:30]} 17. Qe2 {[%emt 0:03:30]} Nf4 {[%emt 0:02:30]} 18. Qf3 {[%emt 0:04:30]} Bc8 {[%emt 0:11:30]} 19. Ne2 {[%emt 0:02:30]} Nh5 {[%emt 0:04:47]} 20. Qxf7+ {[%emt 0:08:30]} Kxf7 {[%emt 0:02:20]} 21. d6+ {[%emt 0:00:00]} Be6 {[%emt 0:04:29]} 22. dxc7 {[%emt 0:01:00]} Rxd1 {[%emt 0:01:03]} 23. Bxe6+ {[%emt 0:00:30]} Kxe6 {[%emt 0:02:44]} 24. Rxd1 {[%emt 0:00:30]} Rc8 {[%emt 0:00:16]} 25. Rd8 {[%emt 0:01:30]} Rxc7 {[%emt 0:00:13]} 26. Ra8 {[%emt 0:00:30]} a5 {[%emt 0:00:30]} 27. Nc3 {[%emt 0:00:30]} Nf6 {[%emt 0:02:06]} 28. Bg5 {[%emt 0:01:30]} c4 {[%emt 0:03:20]} 29. Bxf6 {[%emt 0:00:30]} exf6 {[%emt 0:00:21]} 30. Rb8 {[%emt 0:01:32]} Rc6 {[%emt 0:00:39]} 31. Nd5 {[%emt 0:00:42]} Kd6 {[%emt 0:02:13]} 32. Rb7 {[%emt 0:02:08]} Bh6 {[%emt 0:00:36]} 33. Rxh7 {[%emt 0:03:53]} Bc1 {[%emt 0:00:09]} 34. b3 {[%emt 0:02:22]} cxb3 {[%emt 0:00:49]} 35. cxb3 {[%emt 0:00:30]} f5 {[%emt 0:00:00]} 36. Rb7 {[%emt 0:06:17]} fxe4 {[%emt 0:00:12]} 37. Nxb6 {[%emt 0:00:30]} e3 {[%emt 0:00:30]} 38. Kf1 {[%emt 0:02:16]} exf2 {[%emt 0:00:16]} 39. Nc4+ {[%emt 0:00:23]} Kd5 {[%emt 0:02:30]} 40. Kxf2 {[%emt 0:00:00]} Rc5 {[%emt 0:01:57]} 41. Rd7+ {[%emt 0:10:27]} 1-0

[Event "Turkey IS Bank Super League 2017"]
[Site "Darica-Kocaeli"]
[Date "2017.08.05"]
[Round "12"]
[White "Yaran, Siar"]
[Black "Gundogan, Cem"]
[Result "1-0"]
[ECO "C01"]
[WhiteElo "2253"]
[BlackElo "2062"]
[Annotator "NA"]
[PlyCount "57"]
[EventType "team-tourn"]
[EventCountry "TUR"]
[SourceTitle "playchess.com"]
[Source "ChessBase"]
[SourceQuality "1"]
[TimeControl "40/5400+30:1800+30"]

{[%evp 14,42,-10,-5,-6,-43,-30,-42,-4,-18,-27,-45,-34,-47,-35,-78,0,32767,32767,32767,-38,32767,32767,0,32767,-47,0,0,-8,-2,0]} 1. e4 {[%emt 0:00:30]} e6 {[%emt 0:02:00]} 2. d4 {[%emt 0:01:30]} d5 {[%emt 0:00:30]} 3. exd5 {[%emt 0:00:00]} exd5 {[%emt 0:00:30]} 4. c4 {[%emt 0:00:00]} Nf6 {[%emt 0:04:30]} 5. Nc3 {[%emt 0:00:30]} Be7 {[%emt 0:00:30]} 6. Bd3 {[%emt 0:00:00]} Nc6 {[%emt 0:06:30]} 7. cxd5 {[%emt 0:05:00] C01: French: Exchange Variation} Nb4 {[%emt 0:02:30]} (7... Nxd5 8. Nge2 Be6 9. O-O O-O 10. a3 Re8 11. Bc2 Bf8 12. Qd3 g6 13. Ng3 Bg7 14. Nce2 Nce7 {0-1 (53) Safarli,E (2660)-Nguyen,N (2625) Khanty-Mansiysk 2013}) 8. Bb1 {[%emt 0:00:30]} Nbxd5 {[%emt 0:00:30]} 9. Nge2 {[%emt 0:01:30]} c6 {[%emt 0:02:30]} 10. O-O {[%emt 0:00:30]} Bg4 $146 {[%emt 0:04:30]} ({Predecessor:} 10... Bd6 11. Ng3 O-O 12. Bg5 Qc7 13. Qd3 g6 14. a3 Be6 {1-0 (40) Kouvatsou,M (2218)-Brescher,W (2005) Ikaros 2002}) 11. Qd3 {[%emt 0:05:30]} Qc7 {[%emt 0:08:30]} 12. Bg5 {[%emt 0:05:30]} O-O-O {[%emt 0:05:30]} 13. a3 {[%emt 0:07:30]} h6 {[%emt 0:04:30]} 14. Bh4 {[%emt 0:02:30]} Nf4 {[%emt 0:08:30]} ({Black should play} 14... Bd6 $17 15. Bxf6 Nxf6) 15. Nxf4 {[%emt 0:15:30]} Qxf4 {[%emt 0:00:30]} 16. Nb5 {[%emt 0:00:30] [%clk 0:51]} cxb5 {[%emt 0:40:39]} 17. Bg3 {[%emt 0:03:30]} Qg5 {[%emt 0:00:43]} 18. h4 $1 {[%emt 0:00:30]} Qh5 {[%emt 0:02:25]} 19. Rc1+ $1 {[%emt 0:02:30]} Kd7 {[%emt 0:00:01]} 20. Rc7+ {[%emt 0:06:30]} Ke8 {[%emt 0:00:00]} 21. Ba2 $1 {[%emt 0:01:30]} Be6 $11 {[%emt 0:00:53]} 22. Re1 {[%emt 0:11:30]} Nd5 {[%emt 0:00:38]} 23. Qxb5+ {[%emt 0:00:30]} Kf8 {[%emt 0:00:01]} 24. Rxb7 {[%emt 0:09:12]} Nf6 {[%emt 0:04:04]} 25. d5 {[%emt 0:01:19]} Bd7 {[%emt 0:00:48]} 26. d6 {[%emt 0:00:21]} Bxb5 {[%emt 0:01:09]} 27. dxe7+ {[%emt 0:00:05]} Ke8 {[%emt 0:00:00]} 28. Bxf7+ {[%emt 0:00:24]} Qxf7 {[%emt 0:00:37]} 29. exd8=N+ {[%emt 0:01:14]} 1-0

[Event "Turkey IS Bank Super League 2017"]
[Site "Darica-Kocaeli"]
[Date "2017.08.05"]
[Round "12"]
[White "Goksel, Doga Cihan"]
[Black "Buyukasik, Diyap"]
[Result "1/2-1/2"]
[ECO "E11"]
[WhiteElo "2247"]
[BlackElo "2285"]
[Annotator "NA"]
[PlyCount "61"]
[EventType "team-tourn"]
[EventCountry "TUR"]
[SourceTitle "playchess.com"]
[Source "ChessBase"]
[SourceQuality "1"]
[TimeControl "40/5400+30:1800+30"]

{[%evp 11,61,16,45,25,30,9,9,19,17,-6,-8,-22,0,-29,-29,-30,-34,-36,-39,-81,-19,-74,14,-62,6,-54,46,-15,58,6,56,32767,32767,32767,3,32767,32767,-95,32767,-83,-53,32767,-84,-112,-110,32767,32767,-124,-74,-100,-61,-75]} 1. Nf3 {[%emt 0:00:30]} Nf6 {[%emt 0:01:00]} 2. d4 {[%emt 0:03:30]} e6 {[%emt 0:02:30]} 3. c4 {[%emt 0:01:30]} Bb4+ {[%emt 0:00:30]} 4. Nbd2 {[%emt 0:00:30]} O-O {[%emt 0:01:30]} 5. a3 {[%emt 0:01:30]} Be7 {[%emt 0:01:30]} 6. e4 {[%emt 0:10:30]} d5 {[%emt 0:00:00]} 7. e5 {[%emt 0:03:30]} Nfd7 {[%emt 0:00:00]} 8. cxd5 {[%emt 0:09:30]} exd5 {[%emt 0:00:30]} 9. Bd3 {[%emt 0:00:00] LiveBook: 54 Games} c5 {[%emt 0:00:30]} 10. dxc5 {[%emt 0:01:00] E11: Bogo-Indian} Nc6 {[%emt 0:01:30]} 11. O-O $1 {[%emt 0:05:30]} Nxc5 {[%emt 0:03:30]} 12. Bc2 $146 {[%emt 0:03:30]} ({Find the theoretical novelty and annotate with similar games:} 12. Bb1 Bg4 13. Qc2 g6 14. b4 Ne6 15. Bb2 Qb6 16. h3 Bxf3 17. Nxf3 a5 18. bxa5 Nxa5 {0-1 (45) Temirbayev,S (2490)-Bocharov,D (2577) Salekhard 2006}) 12... Bg4 {[%emt 0:04:30]} 13. h3 {[%emt 0:06:30]} Bh5 $1 {[%emt 0:00:30]} 14. b4 {[%emt 0:06:30]} Ne6 $1 {[%emt 0:04:30]} 15. Re1 {[%emt 0:01:30]} Rc8 {[%emt 0:01:30]} 16. Bb2 {[%emt 0:00:30]} (16. Nb3 $11) 16... Re8 {[%emt 0:05:30]} ({Black should try} 16... Ncd4 $15 17. Bxd4 Nxd4) 17. Rc1 {[%emt 0:00:30]} ({White should try} 17. Qb1 $11) 17... Ncd4 {[%emt 0:03:30]} 18. Bd3 {[%emt 0:01:30]} (18. Bxd4 $11 Nxd4 19. Ba4) 18... Qb6 {[%emt 0:00:30]} (18... Rxc1 $17 19. Bxc1 Bg5) 19. g4 {[%emt 0:02:30]} (19. Bxd4 $14 Nxd4 20. g4) 19... Bg6 {[%emt 0:00:30]} (19... Rxc1 $11 20. Qxc1 Nxf3+ 21. Nxf3 Bg6 22. Bxg6 hxg6) 20. Bxg6 {[%emt 0:00:30]} (20. Bxd4 $5 Nxd4 21. Bxg6 hxg6 22. Nxd4 Qxd4 23. Nf3 Qxd1 24. Rcxd1 $14) 20... hxg6 {[%emt 0:00:30]} 21. Nxd4 {[%emt 0:00:30]} Nxd4 {[%emt 0:01:30]} 22. Nf3 {[%emt 0:01:30] [%clk 0:37]} Ne6 {[%emt 0:03:30]} 23. Qd2 {[%emt 0:01:30]} Rc4 {[%emt 0:01:30]} 24. Rxc4 {[%emt 0:02:30]} (24. Qxd5 $11 Rf4 25. Rc2) 24... dxc4 {[%emt 0:00:30]} 25. Qe3 {[%emt 0:04:30]} Qxe3 {[%emt 0:01:30]} 26. Rxe3 {[%emt 0:00:30]} b5 {[%emt 0:00:30]} 27. Nd4 {[%emt 0:01:30]} Nxd4 {[%emt 0:00:30]} 28. Bxd4 {[%emt 0:00:30]} a6 {[%emt 0:00:30]} 29. Re4 {[%emt 0:02:30]} (29. f4 $15) 29... Rc8 {[%emt 0:00:30]} 30. Bc3 {[%emt 0:00:30]} Kf8 {[%emt 0:01:30]} 31. Kf1 $17 {[%emt 0:01:30]} 1/2-1/2

[Event "Turkey IS Bank Super League 2017"]
[Site "Darica-Kocaeli"]
[Date "2017.08.05"]
[Round "12"]
[White "Uzumcu, Ahmet Utku"]
[Black "Ozen, Bahadir"]
[Result "0-1"]
[ECO "B06"]
[WhiteElo "2223"]
[BlackElo "2315"]
[Annotator "NA"]
[PlyCount "166"]
[EventType "team-tourn"]
[EventCountry "TUR"]
[SourceTitle "playchess.com"]
[Source "ChessBase"]
[SourceQuality "1"]
[TimeControl "40/5400+30:1800+30"]

1. e4 {[%emt 0:01:30]} g6 {[%emt 0:01:00]} 2. d4 {[%emt 0:00:00]} Bg7 {[%emt 0:00:30]} 3. Nc3 {[%emt 0:00:00]} d6 {[%emt 0:00:30]} 4. f4 {[%emt 0:01:30]} e6 {[%emt 0:01:30] B06: Modern Defence} (4... Nf6 5. Nf3 c5 6. Bb5+ Nc6 7. e5 Nd7 8. d5 Nd4 9. Nxd4 cxd4 10. Qxd4 O-O 11. Bxd7 Qxd7 12. O-O Qf5 13. Qd1 dxe5 14. fxe5 Qxe5 {0-1 (54) Wei,Y (2707)-Rapport,R (2717) Yancheng 2016}) 5. Be2 {[%emt 0:04:30]} Ne7 {[%emt 0:00:30]} 6. Nf3 {[%emt 0:01:30]} Nd7 {[%emt 0:02:30]} 7. Be3 {[%emt 0:03:30]} a6 {[%emt 0:02:30]} 8. a4 {[%emt 0:06:30]} b6 {[%emt 0:02:30]} 9. O-O {[%emt 0:01:30]} Bb7 {[%emt 0:01:30]} 10. Nd2 {[%emt 0:06:30]} O-O {[%emt 0:06:30]} 11. Bf3 {[%emt 0:02:30]} d5 {[%emt 0:13:30]} 12. e5 {[%emt 0:06:30]} Nf5 {[%emt 0:13:30]} 13. Bf2 {[%emt 0:04:30] [#]} f6 $146 {[%emt 0:03:30] [%clk 0:46]} ({Predecessor:} 13... c5 14. Ne2 Qc7 {0-1 (30) Yrjola,J (2460)-Sturua,Z (2545) Helsinki 1992}) 14. g4 {[%emt 0:11:30]} Nxd4 {[%emt 0:08:30]} 15. Bxd4 {[%emt 0:03:30]} fxe5 {[%emt 0:00:00]} 16. fxe5 {[%emt 0:01:30]} c5 {[%emt 0:01:00] [#]} 17. Bf2 $1 {[%emt 0:02:30]} Nxe5 {[%emt 0:00:30]} 18. Bg2 {[%emt 0:10:30]} Qg5 {[%emt 0:04:30]} 19. h3 {[%emt 0:08:30]} h5 {[%emt 0:04:30] [#]} 20. gxh5 $1 {[%emt 0:04:36]} Bh6 {[%emt 0:03:30]} 21. Qe2 {[%emt 0:02:20]} Rf5 {[%emt 0:01:30]} 22. Rad1 {[%emt 0:03:22]} gxh5 {[%emt 0:01:30]} 23. Kh1 {[%emt 0:01:56]} Raf8 {[%emt 0:06:30]} 24. Bg1 {[%emt 0:03:39]} Kh7 {[%emt 0:04:43]} 25. Rxf5 {[%emt 0:03:11]} Rxf5 {[%emt 0:00:01]} 26. Bh2 {[%emt 0:00:25]} Ng6 {[%emt 0:04:40]} 27. Nf3 {[%emt 0:02:06]} Qf6 {[%emt 0:00:01]} 28. Re1 {[%emt 0:00:36]} Bg7 {[%emt 0:01:22]} 29. Qxe6 {[%emt 0:01:28]} Rxf3 {[%emt 0:00:17]} 30. Qxf6 {[%emt 0:00:52]} Rxf6 {[%emt 0:00:01]} 31. Nxd5 {[%emt 0:00:54]} Rf2 {[%emt 0:10:19]} 32. Nf6+ {[%emt 0:00:30]} Bxf6 {[%emt 0:00:30]} 33. Bxb7 {[%emt 0:00:30]} Kh6 {[%emt 0:01:24]} 34. Re6 {[%emt 0:00:47]} Kg5 {[%emt 0:01:19]} 35. Be4 {[%emt 0:00:43]} Nh4 {[%emt 0:00:52]} 36. Bg3 {[%emt 0:00:30]} Rf1+ {[%emt 0:00:30]} 37. Kh2 {[%emt 0:00:30]} Bd4 {[%emt 0:00:00]} 38. Bxh4+ {[%emt 0:00:30]} Kxh4 {[%emt 0:00:10]} 39. Rg6 {[%emt 0:00:30]} Rf2+ {[%emt 0:00:17]} 40. Rg2 {[%emt 0:00:00]} Rf4 {[%emt 0:02:04]} 41. Bd3 {[%emt 0:06:05]} Bxb2 {[%emt 0:05:30]} 42. Bxa6 {[%emt 0:00:30]} Rxa4 {[%emt 0:01:30]} 43. Bc8 {[%emt 0:00:30]} Be5+ {[%emt 0:00:30]} 44. Kg1 {[%emt 0:00:30]} Ra8 {[%emt 0:01:30]} 45. Bd7 {[%emt 0:01:30]} Rd8 {[%emt 0:00:30]} 46. Bf5 {[%emt 0:01:30]} Rf8 {[%emt 0:00:30]} 47. Bd7 {[%emt 0:00:30]} Rf7 {[%emt 0:02:30]} 48. Be6 {[%emt 0:00:30]} Rf6 {[%emt 0:00:00]} 49. Bd7 {[%emt 0:00:30]} Bd4+ {[%emt 0:00:00]} 50. Kh2 {[%emt 0:00:00]} Rd6 {[%emt 0:02:30]} 51. Bf5 {[%emt 0:00:00]} Be5+ {[%emt 0:00:37]} 52. Kg1 {[%emt 0:00:30]} b5 {[%emt 0:00:54]} 53. Bc8 {[%emt 0:05:30]} Rd8 {[%emt 0:01:36]} 54. Be6 {[%emt 0:00:30]} Rd6 {[%emt 0:02:42]} 55. Bc8 {[%emt 0:00:30]} Bd4+ {[%emt 0:03:29]} 56. Kf1 {[%emt 0:00:30]} Rd8 {[%emt 0:00:07]} 57. Be6 {[%emt 0:00:30]} Rf8+ {[%emt 0:01:02]} 58. Ke1 {[%emt 0:00:30]} c4 {[%emt 0:00:44]} 59. Bd7 {[%emt 0:00:51]} b4 {[%emt 0:00:51]} 60. Be6 {[%emt 0:01:55]} Rf4 {[%emt 0:00:01]} 61. Kd1 {[%emt 0:01:55]} Bc3 {[%emt 0:00:28]} 62. Bc8 {[%emt 0:01:10]} Re4 {[%emt 0:01:01]} 63. Rg1 {[%emt 0:00:29]} Re5 {[%emt 0:01:33]} (63... Re7 $142 64. Bf5 Re5) 64. Rf1 {[%emt 0:00:58]} Kg3 {[%emt 0:00:37]} 65. Ba6 {[%emt 0:00:50]} Re4 {[%emt 0:00:29]} 66. Bb7 {[%emt 0:00:00]} Re6 {[%emt 0:02:26]} 67. Rf3+ {[%emt 0:00:28]} Kh2 {[%emt 0:00:06]} 68. Rf1 {[%emt 0:00:33]} h4 {[%emt 0:01:52]} 69. Bc8 {[%emt 0:01:02]} Re5 {[%emt 0:01:37]} 70. Ba6 {[%emt 0:00:15]} b3 {[%emt 0:01:20]} 71. cxb3 {[%emt 0:02:43]} cxb3 {[%emt 0:00:01]} 72. Bb7 {[%emt 0:01:34]} Re3 {[%emt 0:01:38]} 73. Kc1 {[%emt 0:02:47]} (73. Rh1+ $142 Kg3 74. Ba8) 73... Re2 {[%emt 0:01:44]} (73... Kxh3 $142 74. Rh1+ Kg4 75. Bc8+ Kg5) 74. Bd5 $2 {[%emt 0:00:55]} (74. Bc6) 74... Rc2+ {[%emt 0:00:20]} 75. Kb1 {[%emt 0:00:32]} Ra2 {[%emt 0:01:09]} 76. Rh1+ {[%emt 0:00:10]} Kg3 {[%emt 0:00:02]} 77. Rg1+ {[%emt 0:00:01]} Kxh3 {[%emt 0:00:35]} 78. Rh1+ {[%emt 0:00:26]} Kg4 {[%emt 0:01:05]} 79. Rg1+ {[%emt 0:00:02]} Kf4 {[%emt 0:00:00]} 80. Rf1+ {[%emt 0:00:09]} Ke5 {[%emt 0:00:09]} 81. Bxb3 {[%emt 0:00:11]} Ra1+ {[%emt 0:00:11]} 82. Kc2 {[%emt 0:00:03]} Rxf1 {[%emt 0:00:06]} 83. Kxc3 {[%emt 0:00:02]} Rf3+ {[%emt 0:00:05]} 0-1

[Event "Turkey IS Bank Super League 2017"]
[Site "Darica-Kocaeli"]
[Date "2017.08.05"]
[Round "12"]
[White "Tasdogen, Dincer"]
[Black "Kamer, Kayra"]
[Result "1/2-1/2"]
[ECO "B42"]
[WhiteElo "2215"]
[BlackElo "2062"]
[Annotator "NA"]
[PlyCount "111"]
[EventType "team-tourn"]
[EventCountry "TUR"]
[SourceTitle "playchess.com"]
[Source "ChessBase"]
[SourceQuality "1"]
[TimeControl "40/5400+30:1800+30"]

1. e4 {[%emt 0:00:30]} c5 {[%emt 0:01:00]} 2. Nf3 {[%emt 0:03:30]} e6 {[%emt 0:00:30]} 3. d4 {[%emt 0:00:00]} cxd4 {[%emt 0:00:00]} 4. Nxd4 {[%emt 0:00:00]} a6 {[%emt 0:00:00]} 5. Bd3 {[%emt 0:00:30]} Bc5 {[%emt 0:00:30]} 6. Nb3 {[%emt 0:00:30]} Be7 {[%emt 0:00:30]} 7. Qg4 {[%emt 0:00:00]} g6 {[%emt 0:00:30]} 8. Qe2 {[%emt 0:00:00]} Nc6 {[%emt 0:00:30] B42: Sicilian: Kan Variation: 5 Bd3} (8... d6 9. c4 Nc6 10. Nc3 Ne5 11. O-O Nf6 12. Bh6 Nfg4 13. Bg7 Rg8 14. Bxe5 Nxe5 15. f4 Nc6 16. Kh1 {½-½ (45) Bologan,V (2640)-Vitiugov,N (2726) Tallinn 2016}) 9. O-O {[%emt 0:00:00]} Qc7 {[%emt 0:00:30]} 10. f4 $146 {[%emt 0:03:00]} ({Predecessor:} 10. Kh1 d6 11. Na3 Bf6 12. Nc4 Nge7 13. Be3 b5 14. Nb6 Rb8 15. Nxc8 Rxc8 16. c4 bxc4 17. Bxc4 {1-0 (43) Borisek,J (2537)-Escobar Dominguez,D (2357) Burguillos 2008}) 10... Nf6 {[%emt 0:01:30]} 11. e5 {[%emt 0:11:30]} Nh5 {[%emt 0:00:30]} 12. N1d2 {[%emt 0:06:30]} d5 {[%emt 0:02:30]} 13. c4 {[%emt 0:16:30]} dxc4 $2 {[%emt 0:00:30]} ({Better is} 13... O-O $11) 14. Nxc4 {[%emt 0:03:30]} b5 {[%emt 0:00:30] [#]} 15. Nd6+ $1 {[%emt 0:10:30]} Bxd6 {[%emt 0:02:30]} 16. exd6 {[%emt 0:00:30]} Qxd6 {[%emt 0:00:30]} 17. Be3 {[%emt 0:01:30]} Bb7 {[%emt 0:03:30]} 18. Nc5 {[%emt 0:14:30]} Nd4 {[%emt 0:04:30]} 19. Qf2 {[%emt 0:01:30]} Qxc5 {[%emt 0:00:30]} 20. Bxd4 {[%emt 0:00:30]} Qd5 {[%emt 0:00:00] [%clk 1:20]} 21. Bxh8 {[%emt 0:07:58]} Nxf4 {[%emt 0:00:00]} 22. Qg3 {[%emt 0:08:33]} (22. Kh1 $16) 22... Nxd3 {[%emt 0:00:00]} 23. Kh1 {[%emt 0:08:07]} (23. Bf6 $11) 23... f5 $1 {[%emt 0:03:00]} 24. Rad1 {[%emt 0:01:20]} Rd8 {[%emt 0:00:30]} 25. h3 {[%emt 0:00:53]} f4 {[%emt 0:00:30]} 26. Qg4 {[%emt 0:00:30]} Nf2+ {[%emt 0:01:30]} 27. Rxf2 {[%emt 0:00:30]} Qxd1+ {[%emt 0:00:00]} 28. Qxd1 {[%emt 0:00:18]} Rxd1+ {[%emt 0:00:00]} 29. Kh2 {[%emt 0:00:00]} g5 {[%emt 0:00:30]} 30. h4 {[%emt 0:00:58]} Rd5 {[%emt 0:01:30]} 31. Bf6 {[%emt 0:00:35]} h6 {[%emt 0:00:30]} 32. Bg7 {[%emt 0:00:09]} e5 {[%emt 0:00:30]} 33. hxg5 {[%emt 0:00:30]} hxg5 {[%emt 0:00:30]} 34. Re2 {[%emt 0:00:00]} Kf7 {[%emt 0:00:30]} 35. Bxe5 {[%emt 0:00:15]} Kg6 {[%emt 0:00:30]} 36. Bc3 {[%emt 0:00:58]} Rd3 {[%emt 0:00:30]} 37. Re7 {[%emt 0:01:17]} Bd5 {[%emt 0:00:30]} 38. a3 {[%emt 0:00:25]} Kf5 $17 {[%emt 0:00:30]} (38... g4 $142 39. Re2 Kg5) 39. Re2 {[%emt 0:00:27]} Kg4 {[%emt 0:00:30]} 40. Rd2 {[%emt 0:00:00]} Be4 {[%emt 0:01:30]} 41. Rxd3 {[%emt 0:01:47]} Bxd3 {[%emt 0:00:30]} 42. Kg1 {[%emt 0:00:30]} Kf5 {[%emt 0:00:30]} 43. Kf2 {[%emt 0:00:30]} Ke4 {[%emt 0:00:30]} 44. Bf6 {[%emt 0:00:30]} g4 {[%emt 0:00:30]} 45. g3 {[%emt 0:00:00]} f3 {[%emt 0:00:30]} 46. Bc3 {[%emt 0:00:00]} Be2 {[%emt 0:00:30]} 47. Bg7 {[%emt 0:00:30]} Kd3 {[%emt 0:00:00]} 48. Bc3 {[%emt 0:00:00]} Kc2 {[%emt 0:00:00]} 49. Be5 {[%emt 0:00:00]} a5 {[%emt 0:00:30]} 50. Bc3 {[%emt 0:00:00]} b4 {[%emt 0:00:30]} 51. axb4 {[%emt 0:00:00]} a4 {[%emt 0:00:00]} 52. Bf6 {[%emt 0:00:00]} Kb3 {[%emt 0:00:00]} 53. Be5 {[%emt 0:00:00]} Kxb4 {[%emt 0:00:00]} 54. Bc3+ {[%emt 0:00:30]} Kc4 {[%emt 0:00:00]} 55. Bf6 {[%emt 0:00:30]} Kb3 {[%emt 0:00:30]} 56. Be5 {[%emt 0:00:00]} 1/2-1/2